bitfinex/quotes_ETHUSD_20250620
["timestamp","ask_amount","ask_price","bid_price","bid_amount"]
[1750429347395,25.46862484,2536.2,2536.0,3.94314975]
[1750429347939,6.647,2536.1,2535.9,3.94334918]
[1750429348325,6.647,2536.1,2536.0,3.94321766]
[1750429348734,1.793,2536.3,2536.2,3.94281974]
[1750429348901,10.0,2536.2,2536.1,3.94300703]
[1750429350214,8.44,2536.3,2536.2,3.94290671]
[1750429350628,8.44,2536.3,2536.0,3.94314801]
[1750429350629,10.0,2536.2,2536.1,3.94299157]
[1750429352017,10.0,2536.2,2536.1,4.72829157]
[1750429352223,1.793,2536.7,2536.6,3.94228494]
[1750429352647,11.793,2536.7,2536.6,3.94228494]
[1750429353173,11.793,2536.7,2536.5,3.94243732]
[1750429353337,10.58828934,2536.6,2536.1,3.94290963]
[1750429353537,14.54686528,2536.3,2536.1,3.94290963]
[1750429353776,14.54686528,2536.3,2536.2,3.94290671]
[1750429354071,6.646,2536.3,2536.2,3.94290671]
[1750429354236,6.646,2536.3,2535.8,0.8094]
[1750429354442,21.19286528,2536.3,2536.2,3.94290671]
[1750429354772,10.0,2536.5,2536.3,3.94271958]
[1750429354984,18.438,2536.4,2536.3,3.94271958]
[1750429355877,18.438,2536.4,2536.2,3.94283479]
[1750429356025,18.438,2536.4,2536.3,3.94275125]
[1750429356553,18.438,2536.4,2536.2,3.94285932]
[1750429357140,18.438,2536.4,2536.1,3.94302621]
[1750429357487,18.438,2536.4,2536.3,3.94275125]
[1750429357828,1.789,2536.8,2536.7,3.94212953]
[1750429358028,24.01886528,2537.0,2536.8,3.94183804]
[1750429358029,16.644,2537.0,2536.8,3.94183804]
[1750429358343,6.644,2537.1,2536.8,0.7658]
[1750429358677,6.644,2537.1,2536.9,3.94168478]
[1750429358678,10.0,2537.0,2536.9,3.94168478]
[1750429358991,6.644,2537.1,2536.8,0.7658]
[1750429359174,6.644,2537.1,2537.0,3.94157785]
[1750429359468,16.644,2537.1,2537.0,3.94157785]
[1750429360290,6.644,2537.1,2536.7,3.94198946]
[1750429360564,14.54686528,2537.0,2536.8,3.94188346]
[1750429360928,14.54686528,2537.0,2536.9,3.94181875]
[1750429361554,26.33586528,2537.2,2536.9,3.94181875]
[1750429361762,6.643,2537.1,2536.9,3.94181875]
[1750429361962,24.54686528,2537.2,2536.9,3.94181875]
[1750429362133,6.643,2537.1,2536.8,3.9419088]
[1750429362334,6.643,2537.1,2536.9,3.94168404]
[1750429362530,6.643,2537.1,2537.0,3.94166338]
[1750429363746,26.33586528,2537.2,2537.0,3.94166338]
[1750429363942,26.33586528,2537.2,2537.1,3.94150802]
[1750429364149,1.789,2537.2,2537.1,3.94150802]
[1750429364355,8.431,2537.2,2537.1,3.94150802]
[1750429364866,8.431,2537.2,2537.0,3.94165746]
[1750429364867,8.431,2537.2,2537.0,3.94159524]
[1750429365449,10.0,2537.4,2537.0,3.94159524]
[1750429365648,8.431,2537.3,2537.1,3.94149125]
[1750429365848,8.431,2537.3,2537.0,3.94157271]
[1750429366875,10.0,2537.1,2536.7,3.94205869]
[1750429367192,6.641,2537.0,2536.8,3.94197414]
[1750429367804,6.641,2537.0,2536.6,3.94228494]
[1750429367994,6.641,2537.0,2536.4,3.94252342]
[1750429367995,24.54686528,2536.9,2536.4,3.94252342]
[1750429368316,14.54686528,2536.6,2536.3,3.94262947]
[1750429368514,6.64,2536.5,2536.4,3.9425958]
[1750429368818,6.64,2536.5,2536.2,3.94279931]
[1750429369617,6.64,2536.5,2536.1,3.94297441]
[1750429369817,12.51291545,2536.4,2536.3,3.94275125]
[1750429369981,10.0,2536.4,2536.3,3.94275125]
[1750429370186,10.0,2536.4,2536.2,3.94282411]
[1750429370399,10.0,2536.4,2536.2,3.94290671]
[1750429370605,21.18686528,2536.3,2535.9,0.8333]
[1750429370808,21.18686528,2536.3,2535.7,3.94365656]
[1750429370809,27.6727082,2536.3,2535.7,3.94365656]
[1750429371020,14.54686528,2536.0,2535.8,3.94342891]
[1750429371228,6.639,2535.9,2535.8,3.94342891]
[1750429373884,17.08986528,2536.3,2535.8,3.94342891]
[1750429374082,1.789,2536.3,2536.1,3.94306218]
[1750429374332,18.428,2536.3,2536.2,3.94290671]
[1750429374491,10.0,2536.3,2536.2,3.94290671]
[1750429377436,16.639,2536.3,2536.2,3.94290671]
[1750429378514,0.7763,2537.0,2536.2,4.74610671]
[1750429378702,21.96116528,2537.0,2536.3,0.86891689]
[1750429379026,14.54686528,2536.7,2536.2,0.8032]
[1750429379234,21.18486528,2536.7,2536.5,3.94235114]
[1750429379391,10.0,2536.6,2536.2,3.9428851]
[1750429379592,24.54686528,2536.4,2536.1,3.94298927]
[1750429379792,10.0,2536.2,2535.9,3.9432964]
[1750429380031,21.18486528,2536.1,2535.9,3.9432964]
[1750429380231,14.54686528,2536.1,2536.0,3.94321766]
[1750429380402,21.18486528,2536.1,2536.0,3.94321766]
[1750429380794,6.638,2536.1,2536.0,3.94321766]
[1750429381926,6.638,2536.1,2535.4,0.7629]
[1750429381927,21.18486528,2536.1,2535.4,0.7629]
[1750429382114,2.6133,2536.0,2535.8,3.94351949]
[1750429382317,6.638,2535.9,2535.8,3.94351949]
[1750429382702,1.789,2536.2,2535.6,0.03943602]
[1750429382902,6.637,2536.1,2535.9,3.94328298]
[1750429383108,6.637,2536.1,2536.0,3.94321766]
[1750429383109,16.637,2536.1,2536.0,3.94321766]
[1750429383429,10.0,2536.0,2535.4,0.7629]
[1750429383627,24.54686528,2535.7,2535.5,3.94392032]
[1750429383843,31.18486528,2535.7,2535.5,3.94392032]
[1750429384049,31.18486528,2535.7,2535.4,3.94408393]
[1750429384198,31.18486528,2535.7,2535.5,3.94399259]
[1750429384519,31.18486528,2535.7,2535.6,3.94383972]
[1750429385230,31.18386528,2535.7,2535.6,3.94383972]
[1750429385859,31.18386528,2535.7,2535.5,3.94387524]
[1750429386032,31.18386528,2535.7,2535.6,3.94383972]
[1750429386627,31.18386528,2535.7,2535.5,3.94390792]
[1750429387665,31.18386528,2535.7,2535.2,3.94437924]
[1750429387666,10.0,2535.6,2535.2,3.94437924]
[1750429387827,14.54686528,2535.4,2535.2,3.94437924]
[1750429388027,14.54686528,2535.4,2535.3,3.94430639]
[1750429388230,2.5828,2535.9,2535.7,3.94357933]
[1750429388541,10.0,2535.7,2535.6,3.94375571]
[1750429388739,10.0,2535.7,2535.4,3.94407759]
[1750429389063,6.637,2535.6,2535.4,3.94407759]
[1750429389274,1.785,2535.6,2535.5,3.94399526]
[1750429389563,8.422,2535.6,2535.5,3.94399526]
[1750429390263,8.422,2535.6,2535.4,3.94414376]
[1750429391166,14.54686528,2535.5,2535.0,0.7689]
[1750429391365,6.637,2535.4,2535.1,3.94461756]
[1750429391666,6.637,2535.4,2535.1,3.94455296]
[1750429391968,17.4256,2535.4,2535.3,3.94430639]
[1750429392458,17.4256,2535.4,2534.9,3.94487933]
[1750429392661,17.4256,2535.4,2535.2,3.94444836]
[1750429392854,10.0,2535.4,2535.3,3.94430639]
[1750429393056,16.637,2535.4,2535.3,4.76850639]
[1750429393367,10.0,2535.4,2535.3,4.76850639]
[1750429393575,0.8045,2536.0,2535.4,3.94415082]
[1750429393861,10.8045,2536.0,2535.9,3.94337316]
[1750429394028,19.2265,2536.0,2535.9,3.94337316]
[1750429394225,19.2265,2536.0,2535.3,1.69549547]
[1750429394427,19.2265,2536.0,2535.7,3.94358884]
[1750429394632,12.07370159,2536.0,2535.8,3.94340571]
[1750429394839,8.422,2535.9,2535.7,3.94361527]
[1750429395250,8.422,2535.9,2535.6,3.94380214]
[1750429395451,8.422,2535.9,2535.7,3.94362833]
[1750429395670,8.422,2535.9,2535.6,3.94374167]
[1750429395878,8.422,2535.9,2535.4,3.94415082]
[1750429396048,1.785,2536.2,2536.0,3.94309648]
[1750429396246,1.785,2536.2,2536.1,3.94306218]
[1750429396445,10.0,2536.3,2536.0,3.94317978]
[1750429396663,6.636,2536.2,2536.0,3.94317978]
[1750429397269,11.785,2536.3,2536.2,3.94290671]
[1750429397473,18.421,2536.3,2536.2,3.94290671]
[1750429397768,18.421,2536.3,2535.9,3.94336477]
[1750429398341,10.0,2536.0,2535.9,3.94336477]
[1750429398574,16.636,2536.0,2535.6,3.94383972]
[1750429398784,16.636,2536.0,2535.5,0.8326]
[1750429398785,14.54686528,2535.8,2535.5,0.8326]
[1750429398944,6.636,2535.7,2535.6,3.94374502]
[1750429399150,11.785,2536.0,2535.8,3.94338377]
[1750429399392,16.636,2535.9,2535.8,3.94338377]
[1750429399938,10.0,2535.8,2535.7,3.94359744]
[1750429400250,6.636,2535.9,2535.7,3.94359744]
[1750429400445,6.636,2535.9,2535.8,3.94352866]
[1750429400766,10.0,2536.0,2535.9,3.94337316]
[1750429400970,16.635,2536.0,2535.9,3.94337316]
[1750429401943,10.0,2536.2,2536.0,3.94313194]
[1750429402271,6.635,2536.2,2536.0,3.94309839]
[1750429403248,10.14744867,2536.2,2535.5,0.779]
[1750429403580,10.14744867,2536.2,2535.1,3.94461756]
[1750429403581,10.0,2535.8,2535.1,3.94461756]
[1750429403765,6.635,2535.7,2535.6,3.94377308]
[1750429404075,6.635,2535.7,2535.3,3.94417598]
[1750429404247,14.54686528,2535.6,2535.1,3.94455737]
[1750429404450,6.634,2535.5,2535.3,3.94423465]
[1750429404674,6.634,2535.5,2535.2,3.94440338]
[1750429404877,14.54686528,2535.3,2534.8,0.7703]
[1750429405079,14.54686528,2535.0,2534.6,3.94539572]
[1750429405248,14.54686528,2535.0,2534.8,3.94507434]
[1750429405249,6.634,2534.9,2534.8,3.94507434]
[1750429405444,10.0,2534.8,2534.5,3.94548176]
[1750429405638,10.0,2534.6,2534.4,3.94561769]
[1750429405975,10.0,2534.6,2534.5,3.94547618]
[1750429407842,10.0,2534.6,2534.3,3.94575136]
[1750429408048,6.635,2534.5,2534.3,3.94575136]
[1750429408274,6.635,2534.5,2534.4,3.94570707]
[1750429409350,10.0,2534.6,2534.5,3.94555139]
[1750429409687,16.634,2534.6,2534.5,3.94555139]
[1750429410547,16.634,2534.6,2534.4,3.94563876]
[1750429410748,16.634,2534.6,2534.3,3.94578647]
[1750429410944,16.634,2534.6,2534.4,3.94570673]
[1750429411179,16.634,2534.6,2534.5,3.94555139]
[1750429411366,6.634,2534.6,2534.5,3.94555139]
[1750429412386,6.634,2534.6,2534.0,0.7924]
[1750429412387,17.4759,2534.6,2534.2,3.94601077]
[1750429412685,0.7561,2534.2,2533.3,0.7924]
[1750429412869,32.96686528,2534.1,2533.9,3.94638588]
[1750429413070,32.96686528,2534.1,2534.0,3.94632991]
[1750429413452,32.96686528,2534.1,2533.9,3.94639508]
[1750429413878,3.37229653,2534.0,2533.8,3.94656061]
[1750429414076,3.37229653,2534.0,2533.1,0.7907]
[1750429414077,10.0,2533.8,2533.1,0.7907]
[1750429414286,10.0,2533.6,2533.2,3.94757618]
[1750429414485,10.0,2533.4,2533.3,3.94733806]
[1750429414690,16.634,2533.4,2533.3,3.94733806]
[1750429415458,10.0,2533.4,2533.3,3.94733806]
[1750429415656,16.634,2534.1,2534.0,3.94632991]
[1750429415861,10.0,2534.0,2533.9,3.94639881]
[1750429416057,14.54686528,2534.0,2533.5,0.7657]
[1750429416368,10.0,2533.8,2533.7,3.94679717]
[1750429416753,10.0,2533.8,2533.6,3.94687369]
[1750429416954,16.635,2533.7,2533.6,3.94687369]
[1750429417588,10.0,2533.7,2533.6,3.94687369]
[1750429417754,16.635,2533.7,2533.6,3.94687369]
[1750429417957,10.0,2533.6,2533.5,3.94710874]
[1750429418492,10.0,2533.6,2533.4,3.947196]
[1750429418691,6.635,2533.5,2533.4,3.947196]
[1750429418900,0.816,2533.4,2533.0,1.58522727]
[1750429419067,10.0,2533.2,2533.0,1.58522727]
[1750429419267,31.18086528,2533.1,2533.0,1.58522727]
[1750429420598,24.54686528,2533.1,2533.0,1.58522727]
[1750429420901,31.18186528,2533.1,2533.0,1.58522727]
[1750429421203,40.02978383,2533.1,2533.0,1.58522727]
[1750429422257,36.08205181,2533.1,2533.0,1.58522727]
[1750429422455,40.02978383,2533.1,2533.0,1.58522727]
[1750429423495,27.66505181,2533.1,2533.0,1.58522727]
[1750429423802,40.03078383,2533.1,2533.0,1.58522727]
[1750429424095,36.08305181,2533.1,2533.0,1.58522727]
[1750429424297,24.54686528,2533.1,2533.0,1.58522727]
[1750429424605,32.96486528,2533.1,2533.0,5.53311514]
[1750429424802,32.96486528,2533.1,2532.7,1.64411157]
[1750429424803,4.71319962,2532.8,2532.7,1.64411157]
[1750429425011,10.0,2532.4,2532.3,1.70299587]
[1750429425160,37.29056777,2532.4,2532.3,1.70299587]
[1750429425361,38.76301203,2532.4,2532.3,1.70299587]
[1750429426793,13.9492911,2532.1,2532.0,1.76188017]
[1750429426969,36.7482663,2532.1,2532.0,1.76188017]
[1750429427169,38.0943663,2532.1,2532.0,1.76188017]
[1750429427510,3.94975906,2531.8,2531.7,1.82076446]
[1750429427804,10.55,2531.3,2529.3,2.23295455]
[1750429428011,13.95288165,2529.8,2529.3,2.23295455]
[1750429428220,76.75174693,2529.8,2529.7,1.68742375]
[1750429428573,76.75174693,2529.8,2529.3,1.85536502]
[1750429428574,33.95350676,2529.4,2529.3,1.85536502]
[1750429428927,43.95444479,2528.8,2528.7,2.35072314]
[1750429429072,66.94931007,2528.8,2528.7,2.35072314]
[1750429429415,30.0,2528.6,2528.3,2.40960744]
[1750429429623,10.0,2528.7,2528.3,2.40960744]
[1750429429624,0.39960489,2528.8,2528.6,3.95463275]
[1750429429787,31.21486528,2528.7,2528.6,3.95463275]
[1750429429984,10.0,2528.7,2528.3,2.40960744]
[1750429430204,10.0,2528.4,2528.3,6.36483299]
[1750429430515,6.672,2528.6,2528.3,6.36483299]
[1750429430516,10.0,2529.0,2528.3,2.40960744]
[1750429430720,14.54686528,2528.8,2528.4,3.9550704]
[1750429430872,10.0,2528.8,2528.7,3.95460117]
[1750429431202,10.0,2528.9,2528.8,3.95444479]
[1750429431408,1.42345848,2529.1,2529.0,3.95413206]
[1750429431780,1.42345848,2529.1,2529.0,4.71183206]
[1750429432180,1.42345848,2529.1,2529.0,4.75136656]
[1750429432381,11.15784671,2529.8,2529.0,0.7577]
[1750429432695,11.15784671,2529.8,2529.4,3.95343447]
[1750429432896,11.15784671,2530.1,2529.1,0.55]
[1750429433217,6.754,2530.0,2529.7,3.95293399]
[1750429433517,6.754,2530.0,2529.6,3.95319016]
[1750429433677,0.26420742,2529.9,2529.8,3.95284468]
[1750429434234,0.26420742,2529.9,2529.0,2.5417]
[1750429434378,21.15784671,2529.7,2529.5,3.95330967]
[1750429434580,6.758,2529.6,2529.5,3.95330967]
[1750429435299,6.758,2529.6,2529.1,0.25417]
[1750429435535,27.91384671,2529.7,2529.4,3.95345474]
[1750429435811,10.0,2529.6,2529.1,0.25417]
[1750429436014,10.0,2529.6,2529.5,3.95335046]
[1750429436312,21.15784671,2529.3,2529.1,3.95395346]
[1750429436526,21.15784671,2529.3,2528.9,3.95420537]
[1750429436527,16.756,2529.2,2528.9,3.95420537]
[1750429436706,16.756,2529.2,2528.6,0.7564]
[1750429436886,11.15784671,2528.9,2528.8,3.95444479]
[1750429437092,10.0,2528.8,2528.4,3.95493529]
[1750429437311,16.756,2528.7,2528.6,3.95465748]
[1750429437810,10.0,2528.7,2528.6,3.95465748]
[1750429438014,10.0,2528.7,2528.3,2.40960744]
[1750429438228,10.0,2528.7,2528.6,3.95475757]
[1750429438516,16.755,2528.7,2528.6,3.95475757]
[1750429439300,16.755,2528.7,2528.3,2.40960744]
[1750429439501,16.755,2528.7,2528.6,3.95475757]
[1750429439502,16.752,2528.7,2528.6,3.95475757]
[1750429439919,16.752,2528.7,2528.5,3.95477683]
[1750429440109,10.0,2528.7,2528.6,3.95475757]
[1750429440317,16.752,2528.7,2528.6,3.95475757]
[1750429440589,10.0,2528.4,2528.3,2.40960744]
[1750429440899,50.16513094,2528.4,2528.3,2.40960744]
[1750429441103,54.12020134,2528.4,2528.3,2.40960744]
[1750429441299,53.44694573,2528.4,2528.3,2.40960744]
[1750429441620,49.49187533,2528.4,2528.3,2.40960744]
[1750429441854,0.39687533,2528.4,2528.3,6.36483427]
[1750429442024,11.15784671,2529.4,2528.6,3.95471761]
[1750429442207,11.15784671,2529.4,2528.3,2.44915576]
[1750429442208,6.762,2529.3,2528.3,2.44915576]
[1750429442527,8.55,2529.5,2528.8,0.7557]
[1750429442728,41.15784671,2529.4,2528.8,0.7557]
[1750429442901,10.0,2528.8,2528.3,2.40960744]
[1750429443104,21.15784671,2528.6,2528.5,3.95491398]
[1750429444006,10.0,2528.6,2528.5,3.95491398]
[1750429444206,10.0,2528.6,2528.3,2.40960744]
[1750429444407,10.0,2528.6,2528.4,3.95504985]
[1750429444732,10.0,2528.4,2528.3,2.40960744]
[1750429445436,30.0,2527.7,2526.3,2.76291322]
[1750429445643,13.95820139,2526.4,2526.3,0.78963987]
[1750429445848,17.57,2526.4,2526.3,0.78963987]
[1750429445996,0.55,2526.4,2526.3,4.74799794]
[1750429446339,0.55,2527.0,2526.9,3.95741818]
[1750429446510,10.0,2527.8,2527.3,3.95668019]
[1750429446698,10.0,2527.8,2527.1,3.95696714]
[1750429446699,10.0,2527.5,2527.1,3.95696714]
[1750429446901,3.95867146,2526.1,2525.0,3.20468859]
[1750429447099,19.50124671,2526.1,2525.0,2.99845041]
[1750429447299,20.06524671,2526.1,2525.0,2.99845041]
[1750429447526,2.325,2526.9,2525.0,2.99845041]
[1750429447527,10.55,2526.2,2525.0,2.99845041]
[1750429447729,43.99824003,2526.1,2525.0,2.99845041]
[1750429448033,3.95899032,2525.9,2525.0,2.99845041]
[1750429448210,43.95976874,2525.4,2525.0,2.99845041]
[1750429448411,63.23661545,2525.4,2525.0,2.99845041]
[1750429448623,55.66761545,2525.4,2525.0,2.99845041]
[1750429448823,64.89485504,2525.4,2525.0,2.99845041]
[1750429449623,30.9460863,2525.4,2525.0,2.99845041]
[1750429449836,64.90585504,2525.4,2525.0,2.99845041]
[1750429450040,33.96023919,2525.1,2525.0,2.99845041]
[1750429450240,33.96023919,2525.1,2525.0,3.32905738]
[1750429450241,53.38157712,2525.1,2525.0,3.32905738]
[1750429450535,53.38157712,2525.1,2524.7,3.27068821]
[1750429450536,30.55,2524.8,2524.7,3.27068821]
[1750429450745,40.0,2524.8,2524.7,3.27068821]
[1750429450904,10.0,2524.8,2524.7,3.27068821]
[1750429451099,17.834,2524.8,2524.7,3.27068821]
[1750429451302,65.85174113,2524.8,2524.7,0.2133535]
[1750429451604,65.85174113,2524.8,2524.3,3.11621901]
[1750429451605,10.74018467,2524.8,2524.3,3.11621901]
[1750429451839,0.03956857,2524.7,2524.3,3.11621901]
[1750429452217,10.0,2524.5,2524.3,3.11621901]
[1750429452416,13.96025213,2525.1,2524.3,3.11621901]
[1750429452417,11.15784671,2525.0,2524.3,3.11621901]
[1750429452619,17.95256857,2524.9,2524.3,3.11621901]
[1750429452928,17.913,2524.9,2524.3,3.11621901]
[1750429453117,0.03956857,2524.8,2524.3,3.11621901]
[1750429453318,10.0,2524.6,2524.3,3.11621901]
[1750429453527,10.0,2524.9,2524.3,3.11621901]
[1750429453845,7.94156857,2524.8,2524.3,3.11621901]
[1750429454201,7.94156857,2524.8,2524.4,3.96132933]
[1750429454405,10.0,2524.6,2524.4,3.96124837]
[1750429454638,1.95270854,2525.3,2524.5,0.7644]
[1750429454839,3.96023919,2525.1,2524.5,0.7644]
[1750429455020,3.96110792,2524.6,2524.3,3.11621901]
[1750429455343,0.03956857,2524.5,2524.3,3.11621901]
[1750429455746,17.898,2524.4,2524.3,3.11621901]
[1750429455919,10.0,2524.4,2524.3,3.11621901]
[1750429456545,10.0,2524.6,2524.3,3.11621901]
[1750429456747,17.894,2524.7,2524.6,3.96102352]
[1750429456921,10.0,2524.7,2524.6,3.96102352]
[1750429457241,10.0,2524.9,2524.3,3.11621901]
[1750429457430,22.99243926,2524.7,2524.3,3.11621901]
[1750429457630,10.0,2524.4,2524.3,3.11621901]
[1750429457823,51.84533734,2524.4,2524.3,3.11621901]
[1750429458144,43.96133734,2524.4,2524.3,3.11621901]
[1750429458319,40.0,2524.4,2524.3,3.11621901]
[1750429458524,47.886,2524.4,2524.3,3.11621901]
[1750429458744,51.84733734,2524.4,2524.3,3.11621901]
[1750429458952,56.35060966,2524.4,2524.3,3.11621901]
[1750429459154,55.80060966,2524.4,2524.3,3.11621901]
[1750429459315,69.34304892,2524.4,2524.3,3.11621901]
[1750429459716,40.0,2524.1,2523.3,1.85224044]
[1750429460055,40.0,2523.4,2523.3,1.85224044]
[1750429460366,48.44,2523.4,2523.3,1.85224044]
[1750429460644,47.89,2523.4,2523.3,1.85224044]
[1750429460845,43.96290718,2523.4,2523.3,1.85224044]
[1750429461020,47.893,2523.4,2523.3,1.85224044]
[1750429461221,52.40590718,2523.4,2523.3,1.85224044]
[1750429461446,17.9161795,2523.4,2523.3,1.85224044]
[1750429461648,51.86290718,2523.4,2523.3,1.85224044]
[1750429461903,40.0,2523.4,2523.3,1.85224044]
[1750429462034,51.86490718,2523.4,2523.3,1.85224044]
[1750429462353,51.78435418,2523.4,2523.3,1.85224044]
[1750429462715,39.919447,2523.4,2523.3,1.85224044]
[1750429462915,17.817447,2523.4,2523.3,1.85224044]
[1750429463157,9.919447,2523.4,2523.3,1.85224044]
[1750429463312,30.0,2523.2,2522.7,4.2382405]
[1750429463515,40.0,2523.0,2522.7,3.4106405]
[1750429463744,0.03956857,2522.9,2522.7,3.4106405]
[1750429464484,10.0,2522.8,2522.7,3.4106405]
[1750429464855,7.952,2523.2,2522.7,3.4106405]
[1750429465180,0.7973,2523.5,2522.7,3.4106405]
[1750429465181,10.03956857,2523.1,2523.0,3.96353547]
[1750429465346,7.952,2523.3,2522.7,3.75170455]
[1750429465549,0.03956857,2523.2,2523.1,3.96337838]
[1750429465864,10.03956857,2523.3,2523.0,3.96347772]
[1750429466067,0.03956857,2523.2,2522.9,3.96363723]
[1750429466251,0.03956857,2523.2,2523.1,3.96337838]
[1750429466458,0.03956857,2523.2,2523.1,4.71507838]
[1750429466643,10.0,2523.5,2523.4,3.96290718]
[1750429467063,0.8171,2524.3,2523.7,3.96234594]
[1750429467294,9.50220368,2523.9,2523.5,3.96263097]
[1750429467446,19.50220368,2523.9,2523.2,3.9632213]
[1750429467648,1.56720368,2523.9,2523.2,0.86783559]
[1750429467868,1.56720368,2523.9,2523.8,3.9622791]
[1750429468250,7.929,2524.4,2524.3,3.96149427]
[1750429468444,23.31943926,2524.7,2523.5,3.96267267]
[1750429468445,12.99243926,2524.7,2524.0,3.96196513]
[1750429468674,30.0,2524.5,2523.9,0.7528]
[1750429468985,47.922,2524.9,2523.9,0.7528]
[1750429469286,30.0,2525.1,2524.8,3.96062833]
[1750429469444,40.0,2524.9,2524.0,0.47150587]
[1750429469649,7.922,2525.0,2524.2,3.96165121]
[1750429469849,7.922,2525.0,2524.7,3.96084762]
[1750429470062,10.0,2524.9,2524.7,3.96084762]
[1750429470283,30.0,2525.0,2524.7,3.96074987]
[1750429470472,7.912,2524.9,2524.7,3.96074987]
[1750429470676,40.0,2524.8,2524.3,3.96141713]
[1750429470972,10.0,2524.6,2524.4,3.96130228]
[1750429471171,0.03956857,2524.5,2523.9,0.7528]
[1750429471377,10.0,2524.4,2524.3,3.96141338]
[1750429471775,10.0,2524.4,2524.2,3.96162323]
[1750429471973,0.03956857,2524.3,2524.2,3.96162323]
[1750429472177,0.03956857,2524.3,2524.2,3.96165121]
[1750429472377,0.03956857,2524.3,2524.1,3.96173652]
[1750429472556,50.0,2524.1,2523.4,4.74502659]
[1750429472757,10.0,2523.7,2523.1,4.7455465]
[1750429472958,7.93256857,2523.6,2523.2,3.9632213]
[1750429473153,7.93256857,2523.6,2523.5,3.96275014]
[1750429473352,10.03956857,2523.6,2523.5,3.96275014]
[1750429473554,4.35865686,2524.3,2523.3,3.96291979]
[1750429473555,1.79465686,2524.3,2523.3,3.96291979]
[1750429473767,0.03956857,2524.2,2523.3,3.96300685]
[1750429473967,17.92256857,2524.2,2524.1,3.96180816]
[1750429474273,17.883,2524.2,2524.1,3.96180816]
[1750429474472,10.0,2524.1,2523.8,3.96213151]
[1750429474778,10.0,2523.9,2523.2,3.9632213]
[1750429474983,0.03956857,2523.8,2523.5,3.96271648]
[1750429475198,0.03956857,2523.8,2523.2,3.9632213]
[1750429475490,7.92456857,2523.8,2523.5,3.96273518]
[1750429475693,7.92456857,2523.8,2523.7,3.9624361]
[1750429475694,10.03956857,2523.8,2523.7,3.9624361]
[1750429475897,17.878,2523.8,2523.7,3.9624361]
[1750429476194,17.878,2523.8,2523.1,0.7822]
[1750429476399,1.7878,2523.7,2523.4,3.96289035]
[1750429476608,7.91356857,2523.6,2523.4,3.96289035]
[1750429476761,7.91356857,2523.6,2523.4,3.96282608]
[1750429476981,7.91356857,2523.6,2523.5,3.96275014]
[1750429477175,7.874,2523.6,2523.5,3.96275014]
[1750429477782,0.03956857,2523.7,2523.6,3.96259312]
[1750429478417,10.0,2523.8,2523.7,3.9624361]
[1750429478623,10.21562038,2523.8,2523.1,0.7822]
[1750429478920,10.21562038,2523.8,2523.6,3.96246588]
[1750429478921,0.03956857,2523.7,2523.6,3.96246588]
[1750429479422,0.25514239,2523.7,2523.6,3.96246588]
[1750429479636,0.255175,2523.7,2523.6,3.96246588]
[1750429480025,40.0,2523.4,2522.7,4.2217405]
[1750429480347,12.99243926,2522.8,2522.7,3.4106405]
[1750429480506,30.83043926,2522.8,2522.7,3.4106405]
[1750429480706,34.79428895,2522.8,2522.7,3.4106405]
[1750429480902,21.80184969,2522.8,2522.7,3.4106405]
[1750429481245,52.77168776,2522.8,2522.7,3.4106405]
[1750429481401,55.44198214,2522.8,2522.7,3.4106405]
[1750429481601,10.0,2522.3,2522.2,0.2133535]
[1750429481808,10.0,2522.3,2521.0,4.45626198]
[1750429481809,30.0,2522.0,2521.0,4.45626198]
[1750429482134,11.21406818,2522.1,2521.0,4.45626198]
[1750429482135,3.9660506,2521.4,2521.3,3.1461777]
[1750429482444,33.96652254,2521.1,2521.0,3.70506198]
[1750429482653,48.05608011,2521.1,2521.0,3.70506198]
[1750429482943,57.00739029,2520.8,2520.3,3.82283058]
[1750429483244,43.9669946,2520.8,2520.3,3.82283058]
[1750429483429,0.21510725,2520.8,2520.3,3.82283058]
[1750429483744,0.25475038,2521.6,2520.4,0.03967823]
[1750429483939,30.0,2521.2,2520.3,3.82283058]
[1750429484106,0.30505515,2521.1,2521.0,3.96665801]
[1750429484555,0.26548658,2521.1,2521.0,3.96665801]
[1750429484759,0.26548658,2521.1,2521.0,4.76000658]
[1750429484923,0.26548658,2521.1,2521.0,3.96665801]
[1750429485124,0.26548658,2521.1,2520.7,3.76394628]
[1750429485336,0.03956857,2521.0,2520.9,3.96683724]
[1750429485562,0.03956857,2521.0,2520.7,3.76394628]
[1750429485563,17.87,2521.6,2521.5,3.96589331]
[1750429485771,30.0,2521.6,2521.5,3.96589331]
[1750429485933,2.522,2522.1,2521.6,3.96563388]
[1750429485934,40.0,2521.8,2521.6,3.96563388]
[1750429486134,0.03956857,2521.7,2521.6,3.96573604]
[1750429486539,10.0,2521.6,2521.3,3.96609439]
[1750429486755,0.03456857,2521.5,2521.4,3.9660506]
[1750429486973,30.0,2521.1,2520.7,3.76394628]
[1750429487171,17.895,2521.2,2521.1,3.96652254]
[1750429487384,10.0,2521.3,2521.1,3.96652254]
[1750429487568,10.0,2521.3,2520.7,3.76394628]
[1750429487745,40.0,2521.3,2520.7,4.14034091]
[1750429487949,10.0,2521.3,2521.2,3.96636522]
[1750429488148,0.7914,2522.2,2521.3,3.96610853]
[1750429488472,30.0,2521.6,2521.3,3.96609411]
[1750429488669,50.0,2521.4,2520.7,4.14034091]
[1750429488872,30.0,2521.3,2520.7,3.76394628]
[1750429489069,30.0,2521.1,2520.7,3.76394628]
[1750429489269,17.91956857,2521.2,2520.9,3.96683724]
[1750429489270,0.03456857,2521.0,2520.9,3.96683724]
[1750429489483,17.885,2521.2,2521.0,3.96654508]
[1750429489484,0.03456857,2521.1,2521.0,3.96654508]
[1750429489785,7.892,2521.2,2521.0,3.96656862]
[1750429490088,7.892,2521.2,2521.1,3.96652254]
[1750429490459,30.0,2521.1,2520.8,3.9669751]
[1750429490664,7.892,2521.2,2521.1,3.96652254]
[1750429491187,17.892,2521.2,2520.9,3.96668961]
[1750429491486,0.03456857,2521.1,2520.9,3.96668961]
[1750429491782,17.892,2521.2,2521.0,3.96667988]
[1750429492131,7.868,2521.3,2520.7,3.76394628]